[Event "EYCC Open-U18 2019"]
[Site "Bratislava"]
[Date "2019.08.04"]
[Round "3.48"]
[White "Heimisson, Hilmir Freyr"]
[Black "Ihnat, Marek"]
[Result "1-0"]
[ECO "A45"]
[WhiteElo "2279"]
[BlackElo "1946"]
[Annotator "NA"]
[PlyCount "87"]
[EventDate "2019.08.02"]
[EventType "swiss"]
[EventCountry "SVK"]
[SourceTitle "playchess.com"]
[Source "ChessBase"]
[SourceQuality "1"]
[TimeControl "40/5400+30:1800+30"]

1. d4 {[%emt 0:00:00]} Nf6 {[%emt 0:00:00]} 2. Bg5 {[%emt 0:00:00]} Ne4 {[%emt 0:00:00]} 3. Bf4 {[%emt 0:00:00]} c5 {[%emt 0:00:00]} 4. d5 {[%emt 0:00:00]} Qb6 {[%emt 0:02:16]} 5. Bc1 {[%emt 0:00:00]} e6 {[%emt 0:01:35]} 6. f3 {[%emt 0:01:10]} Nf6 {[%emt 0:00:23]} 7. e4 {[%emt 0:00:20]} exd5 {[%emt 0:05:52]} 8. exd5 {[%emt 0:00:08]} Bd6 {[%emt 0:00:39]} 9. c4 {[%emt 0:00:20]} O-O {[%emt 0:00:22]} 10. Bd3 {[%emt 0:00:12]} Re8+ {[%emt 0:00:37]} 11. Ne2 {[%emt 0:00:09]} Bf8 {[%emt 0:00:47]} 12. O-O {[%emt 0:01:23]} d6 {[%emt 0:01:05]} 13. Nbc3 {[%emt 0:01:22]} Nbd7 {[%emt 0:02:29]} 14. f4 {[%emt 0:00:28]} g6 {[%emt 0:10:48]} 15. h3 {[%emt 0:10:54]} Bg7 {[%emt 0:02:49]} 16. Qc2 {[%emt 0:00:39]} a6 {[%emt 0:03:59]} 17. Bd2 {[%emt 0:06:33]} Qd8 {[%emt 0:06:27]} 18. a4 {[%emt 0:00:32]} Nb6 {[%emt 0:03:04]} 19. Rf3 {[%emt 0:03:37]} Nbd7 {[%emt 0:13:07]} 20. Kh1 {[%emt 0:02:20]} b6 {[%emt 0:03:50]} 21. Raf1 {[%emt 0:02:40]} Bb7 {[%emt 0:02:12]} 22. R3f2 {[%emt 0:00:48]} Nh5 {[%emt 0:04:05]} 23. g4 {[%emt 0:21:02]} Nhf6 {[%emt 0:01:45]} 24. f5 {[%emt 0:03:07]} Ne5 {[%emt 0:23:10]} 25. Bf4 {[%emt 0:24:28]} Nfd7 {[%emt 0:01:10]} 26. fxg6 {[%emt 0:04:41]} fxg6 {[%emt 0:00:29]} 27. Ne4 {[%emt 0:01:05]} Nxd3 {[%emt 0:04:15]} 28. Qxd3 {[%emt 0:00:07]} Ne5 {[%emt 0:00:52]} 29. Bxe5 {[%emt 0:06:52]} Bxe5 {[%emt 0:00:12]} 30. N2g3 {[%emt 0:00:26]} Qh4 {[%emt 0:01:27]} 31. Kg2 {[%emt 0:01:31]} Rf8 {[%emt 0:01:19]} 32. Qb3 {[%emt 0:01:04]} Rxf2+ {[%emt 0:00:47]} 33. Rxf2 {[%emt 0:00:01]} Qd8 {[%emt 0:00:50]} 34. g5 {[%emt 0:02:00]} Bc8 {[%emt 0:00:48]} 35. Qf3 {[%emt 0:00:55]} Qe7 {[%emt 0:00:22]} 36. h4 {[%emt 0:01:57]} Bd7 {[%emt 0:00:39]} 37. h5 {[%emt 0:00:53]} Bxa4 {[%emt 0:02:48]} 38. Nf6+ {[%emt 0:00:30]} Bxf6 {[%emt 0:00:54]} 39. gxf6 {[%emt 0:00:11]} Qf7 {[%emt 0:00:16]} 40. Ne4 {[%emt 0:00:00]} gxh5 {[%emt 0:00:00]} 41. Ng5 {[%emt 0:09:49]} Qg6 {[%emt 0:03:00]} 42. f7+ {[%emt 0:00:38]} Kf8 {[%emt 0:00:14]} 43. Qg3 {[%emt 0:00:19]} Bd7 {[%emt 0:01:40]} 44. Nxh7+ {[%emt 0:00:44]} 1-0

[Event "EYCC Open-U18 2019"]
[Site "Bratislava"]
[Date "2019.08.05"]
[Round "4.1"]
[White "Zarubitski, Viachaslau"]
[Black "Hakobyan, Aram"]
[Result "0-1"]
[ECO "B31"]
[WhiteElo "2424"]
[BlackElo "2568"]
[Annotator "RC"]
[PlyCount "100"]
[EventDate "2019.08.02"]
[EventType "swiss"]
[EventCountry "SVK"]
[TimeControl "40/5400+30:1800+30"]

1. e4 {[%emt 0:00:00]} c5 {[%emt 0:00:00]} 2. Nf3 {[%emt 0:00:00]} Nc6 {[%emt 0:00:00]} 3. Bb5 {[%emt 0:00:06]} g6 {[%emt 0:00:00]} 4. Bxc6 {[%emt 0:00:33]} bxc6 {[%emt 0:00:00]} 5. O-O {[%emt 0:00:13]} Bg7 {[%emt 0:00:00]} 6. Re1 {[%emt 0:00:09]} Nh6 {[%emt 0:00:06]} 7. c3 {[%emt 0:00:13]} O-O {[%emt 0:00:46]} 8. h3 {[%emt 0:00:13]} f5 {[%emt 0:00:10]} 9. e5 {[%emt 0:00:08]} Nf7 {[%emt 0:00:08]} 10. d3 {[%emt 0:02:01]} h6 {[%emt 0:00:29]} 11. h4 {[%emt 0:08:25]} e6 {[%emt 0:00:02]} 12. Bf4 {[%emt 0:03:36]} g5 {[%emt 0:02:19]} 13. hxg5 {[%emt 0:00:03]} hxg5 {[%emt 0:00:09]} 14. Nxg5 {[%emt 0:00:00]} Nxg5 {[%emt 0:01:26]} 15. Qh5 {[%emt 0:00:07]} Nf7 {[%emt 0:35:43]} 16. Re3 {[%emt 0:00:24]} d6 {[%emt 0:02:26]} 17. exd6 {[%emt 0:31:46]} e5 {[%emt 0:26:28]} 18. Rh3 {[%emt 0:08:12]} Re8 {[%emt 0:00:27]} 19. Qh7+ {[%emt 0:06:11]} Kf8 {[%emt 0:00:06]} 20. Rg3 {[%emt 0:02:56]} Qf6 {[%emt 0:00:02]} 21. Rg6 {[%emt 0:09:48]} exf4 {[%emt 0:00:08]} 22. Nd2 {[%emt 0:01:08]} Qxg6 {[%emt 0:01:41]} 23. Qxg6 {[%emt 0:00:24]} Re6 {[%emt 0:00:04]} 24. Qh5 {[%emt 0:00:34]} Rxd6 {[%emt 0:00:03]} 25. Nc4 {[%emt 0:02:51]} Rxd3 {[%emt 0:08:13]} 26. Qe2 {[%emt 0:06:01]} Rd5 {[%emt 0:02:01]} 27. Re1 {[%emt 0:02:43]} Bd7 {[%emt 0:02:15]} 28. Qe7+ {[%emt 0:00:50]} Kg8 {[%emt 0:00:31]} 29. Qh4 {[%emt 0:00:01]} Bh6 {[%emt 0:04:42]} 30. Qf6 {[%emt 0:02:48]} Re8 {[%emt 0:00:59]} 31. Kf1 {[%emt 0:02:30]} Rxe1+ {[%emt 0:02:21]} 32. Kxe1 {[%emt 0:00:01]} Kf8 {[%emt 0:00:26]} 33. Qg6 {[%emt 0:02:26]} Bg7 {[%emt 0:01:00]} 34. Qh5 {[%emt 0:01:30]} Bc8 {[%emt 0:02:26]} 35. Qh4 {[%emt 0:02:35]} Ba6 {[%emt 0:02:43]} 36. Qxf4 {[%emt 0:02:07]} Bh6 {[%emt 0:00:20]} 37. Qb8+ {[%emt 0:00:38]} Rd8 {[%emt 0:00:10]} 38. Qb3 {[%emt 0:02:03]} Re8+ {[%emt 0:04:44]} 39. Kd1 {[%emt 0:00:35]} Rd8+ {[%emt 0:02:11]} 40. Kc2 {[%emt 0:00:00]} Bf4 {[%emt 0:00:00]} 41. Ne3 {[%emt 0:11:40]} Bd3+ {[%emt 0:06:02]} 42. Kc1 {[%emt 0:00:03]} Be4 {[%emt 0:00:34]} 43. g3 {[%emt 0:04:20]} Bxe3+ {[%emt 0:02:05]} 44. fxe3 {[%emt 0:00:04]} Ne5 {[%emt 0:00:23]} 45. Qa3 {[%emt 0:04:40]} Nd3+ {[%emt 0:01:59]} 46. Kc2 {[%emt 0:00:05]} Rd7 {[%emt 0:02:04]} 47. Kb3 {[%emt 0:09:40]} Rb7+ {[%emt 0:01:49]} 48. Kc4 {[%emt 0:00:01]} Nxb2+ {[%emt 0:00:47]} 49. Kxc5 {[%emt 0:00:04]} Rb5+ {[%emt 0:00:15]} 50. Kd4+ {[%emt 0:00:07]} c5+ {[%emt 0:00:08]} 0-1

[Event "EYCC Open-U18 2019"]
[Site "Bratislava"]
[Date "2019.08.05"]
[Round "4.8"]
[White "Van Foreest, Lucas"]
[Black "Kotau, Arseni"]
[Result "1-0"]
[ECO "E71"]
[WhiteElo "2521"]
[BlackElo "2227"]
[Annotator "RC"]
[PlyCount "79"]
[EventDate "2019.08.02"]
[EventType "swiss"]
[EventCountry "SVK"]
[TimeControl "40/5400+30:1800+30"]

1. d4 {[%emt 0:00:00]} Nf6 {[%emt 0:00:00]} 2. c4 {[%emt 0:00:00]} g6 {[%emt 0:00:00]} 3. Nc3 {[%emt 0:00:00]} Bg7 {[%emt 0:00:00]} 4. e4 {[%emt 0:00:00]} d6 {[%emt 0:00:00]} 5. h3 {[%emt 0:00:00]} O-O {[%emt 0:03:25]} 6. Be3 {[%emt 0:00:00]} c5 {[%emt 0:00:06]} 7. d5 {[%emt 0:00:06]} e6 {[%emt 0:00:24]} 8. Nf3 {[%emt 0:00:06]} exd5 {[%emt 0:00:05]} 9. cxd5 {[%emt 0:00:07]} Re8 {[%emt 0:04:32]} 10. Nd2 {[%emt 0:01:18]} a6 {[%emt 0:01:52]} 11. a4 {[%emt 0:00:43]} Nbd7 {[%emt 0:01:47]} 12. Be2 {[%emt 0:03:16]} b6 {[%emt 0:09:20]} 13. O-O {[%emt 0:00:12]} Rb8 {[%emt 0:01:14]} 14. Qc2 {[%emt 0:10:19]} Qc7 {[%emt 0:05:21]} 15. f4 {[%emt 0:14:21]} Bb7 {[%emt 0:09:03]} 16. Rf3 {[%emt 0:08:10]} Ra8 {[%emt 0:07:17]} 17. Qd3 {[%emt 0:10:26]} Qb8 {[%emt 0:08:32]} 18. Bf2 {[%emt 0:08:12]} Re7 {[%emt 0:16:51]} 19. Bf1 {[%emt 0:00:39]} Qe8 {[%emt 0:09:03]} 20. Nc4 {[%emt 0:02:59]} Qb8 {[%emt 0:00:36]} 21. Re1 {[%emt 0:04:33]} Ne8 {[%emt 0:10:43]} 22. Qd2 {[%emt 0:06:58]} f6 {[%emt 0:02:07]} 23. h4 {[%emt 0:02:38]} Bh6 {[%emt 0:00:35]} 24. h5 {[%emt 0:00:28]} Ne5 {[%emt 0:00:44]} 25. Rg3 {[%emt 0:02:19]} Rg7 {[%emt 0:02:06]} 26. Nxb6 {[%emt 0:00:25]} Ra7 {[%emt 0:01:00]} 27. Be3 {[%emt 0:00:44]} Nf7 {[%emt 0:00:57]} 28. hxg6 {[%emt 0:00:15]} hxg6 {[%emt 0:00:15]} 29. b4 {[%emt 0:04:53]} cxb4 {[%emt 0:01:10]} 30. Ne2 {[%emt 0:00:21]} a5 {[%emt 0:01:09]} 31. Nd4 {[%emt 0:00:21]} Kh7 {[%emt 0:02:59]} 32. Ne6 {[%emt 0:00:44]} Rg8 {[%emt 0:00:09]} 33. Nd7 {[%emt 0:01:18]} Qa8 {[%emt 0:00:08]} 34. Qd4 {[%emt 0:02:32]} Bxd5 {[%emt 0:00:08]} 35. Nb6 {[%emt 0:00:16]} Bxe6 {[%emt 0:00:18]} 36. Nxa8 {[%emt 0:00:03]} Rxa8 37. f5 {[%emt 0:00:13]} gxf5 {[%emt 0:00:57]} 38. Rxg8 {[%emt 0:00:07]} Kxg8 {[%emt 0:00:05]} 39. Bxh6 {[%emt 0:00:29]} Nxh6 {[%emt 0:00:05]} 40. exf5 {[%emt 0:00:00]} 1-0

[Event "EYCC Open-U18 2019"]
[Site "Bratislava"]
[Date "2019.08.05"]
[Round "4.11"]
[White "Oboladze, Luka"]
[Black "Gumularz, Szymon"]
[Result "1/2-1/2"]
[ECO "E91"]
[WhiteElo "2323"]
[BlackElo "2502"]
[Annotator "ChessBase"]
[PlyCount "72"]
[EventDate "2019.08.02"]
[EventType "swiss"]
[EventCountry "SVK"]
[SourceTitle "playchess.com"]
[Source "ChessBase"]
[SourceQuality "1"]
[TimeControl "40/5400+30:1800+30"]

1. d4 {[%emt 0:00:00]} Nf6 {[%emt 0:00:00]} 2. c4 {[%emt 0:00:00]} g6 {[%emt 0:00:00]} 3. Nc3 {[%emt 0:00:00]} Bg7 {[%emt 0:00:02]} 4. e4 {[%emt 0:00:05]} d6 {[%emt 0:00:08]} 5. Nf3 {[%emt 0:00:07]} O-O {[%emt 0:00:07]} 6. Be2 {[%emt 0:00:11]} c5 {[%emt 0:00:45]} 7. O-O {[%emt 0:01:14]} cxd4 {[%emt 0:00:24]} 8. Nxd4 {[%emt 0:00:05]} Nc6 {[%emt 0:00:08]} 9. Be3 {[%emt 0:00:17]} Bd7 {[%emt 0:00:04]} 10. f3 {[%emt 0:00:45]} Nxd4 {[%emt 0:05:10]} 11. Bxd4 {[%emt 0:00:06]} a5 {[%emt 0:03:29]} 12. b3 {[%emt 0:01:11]} Bc6 {[%emt 0:00:40]} 13. Qd2 {[%emt 0:02:07]} Nd7 {[%emt 0:00:07]} 14. Bxg7 {[%emt 0:08:01]} Kxg7 {[%emt 0:00:06]} 15. Qd4+ {[%emt 0:00:28]} Kg8 {[%emt 0:00:27]} 16. Rfd1 {[%emt 0:01:02]} Qb6 {[%emt 0:00:53]} 17. Qxb6 {[%emt 0:10:19]} Nxb6 {[%emt 0:01:56]} 18. Rac1 {[%emt 0:11:23]} Rfc8 {[%emt 0:01:24]} 19. Nd5 {[%emt 0:03:42]} Bxd5 {[%emt 0:03:20]} 20. cxd5 {[%emt 0:00:55]} Kg7 {[%emt 0:01:38]} 21. Kf2 {[%emt 0:02:46]} f5 {[%emt 0:00:34]} 22. Ke3 {[%emt 0:01:45]} Kf6 {[%emt 0:02:18]} 23. f4 {[%emt 0:08:01]} fxe4 {[%emt 0:19:01]} 24. Kxe4 {[%emt 0:00:28]} Nd7 {[%emt 0:02:25]} 25. Rxc8 {[%emt 0:05:18]} Rxc8 {[%emt 0:00:11]} 26. Bg4 {[%emt 0:00:31]} Nc5+ {[%emt 0:00:35]} 27. Kd4 {[%emt 0:03:44]} Rc7 {[%emt 0:06:21]} 28. Be2 {[%emt 0:04:58]} Nd7 {[%emt 0:04:18]} 29. Bd3 {[%emt 0:03:01]} Nb6 {[%emt 0:07:55]} 30. g4 {[%emt 0:07:28]} Rc5 {[%emt 0:01:07]} 31. g5+ {[%emt 0:01:08]} Kf7 {[%emt 0:10:34]} 32. Be4 {[%emt 0:00:33]} Rb5 {[%emt 0:05:09]} 33. Rb1 {[%emt 0:04:53]} Rb4+ {[%emt 0:03:40]} 34. Ke3 {[%emt 0:00:14]} Rb5 {[%emt 0:00:31]} 35. Kd4 {[%emt 0:03:04]} Rb4+ {[%emt 0:02:11]} 36. Ke3 {[%emt 0:00:06]} Rb5 {[%emt 0:00:42]} 1/2-1/2

[Event "EYCC Open-U18 2019"]
[Site "Bratislava"]
[Date "2019.08.05"]
[Round "4.13"]
[White "Blohberger, Felix"]
[Black "Ciorgovean, Iustin"]
[Result "1/2-1/2"]
[ECO "B51"]
[WhiteElo "2476"]
[BlackElo "2330"]
[Annotator "ChessBase"]
[PlyCount "43"]
[EventDate "2019.08.02"]
[EventType "swiss"]
[EventCountry "SVK"]
[SourceTitle "playchess.com"]
[Source "ChessBase"]
[SourceQuality "1"]
[TimeControl "40/5400+30:1800+30"]

1. e4 {[%emt 0:00:00]} c5 {[%emt 0:00:00]} 2. Nf3 {[%emt 0:00:00]} d6 {[%emt 0:00:00]} 3. Bb5+ {[%emt 0:00:00]} Nd7 {[%emt 0:00:00]} 4. O-O {[%emt 0:00:00]} a6 {[%emt 0:00:00]} 5. Bd3 {[%emt 0:00:12]} Ngf6 {[%emt 0:00:06]} 6. Re1 {[%emt 0:00:30]} e6 {[%emt 0:00:12]} 7. c3 {[%emt 0:00:13]} b5 {[%emt 0:00:19]} 8. Bc2 {[%emt 0:00:47]} c4 {[%emt 0:00:12]} 9. a4 {[%emt 0:00:17]} Bb7 {[%emt 0:00:12]} 10. d4 {[%emt 0:00:27]} cxd3 {[%emt 0:00:09]} 11. Qxd3 {[%emt 0:00:09]} Nc5 {[%emt 0:00:21]} 12. Qe2 {[%emt 0:00:13]} bxa4 {[%emt 0:00:22]} 13. Be3 {[%emt 0:00:43]} Nfxe4 {[%emt 0:13:28]} 14. Nbd2 {[%emt 0:01:49]} Nxd2 {[%emt 0:00:17]} 15. Nxd2 {[%emt 0:00:24]} Qc7 {[%emt 0:00:27]} 16. Bxc5 {[%emt 0:08:16]} Qxc5 {[%emt 0:00:11]} 17. Bxa4+ {[%emt 0:00:34]} Ke7 {[%emt 0:00:04]} 18. b4 {[%emt 0:19:04]} Qc7 {[%emt 0:28:51]} 19. Nb3 {[%emt 0:18:44]} g6 {[%emt 0:13:07]} 20. Nd4 {[%emt 0:08:29]} e5 {[%emt 0:01:49]} 21. c4 {[%emt 0:08:24]} Kf6 {[%emt 0:15:50]} 22. Nb3 {[%emt 0:04:47]} 1/2-1/2

[Event "EYCC Open-U18 2019"]
[Site "Bratislava"]
[Date "2019.08.05"]
[Round "4.15"]
[White "Travadon, Loic"]
[Black "Mladek, Richard"]
[Result "1-0"]
[ECO "A05"]
[WhiteElo "2403"]
[BlackElo "2253"]
[Annotator "RC"]
[PlyCount "89"]
[EventDate "2019.08.02"]
[EventType "swiss"]
[EventCountry "SVK"]
[TimeControl "40/5400+30:1800+30"]

1. Nf3 {[%emt 0:00:00]} Nf6 {[%emt 0:00:00]} 2. c4 {[%emt 0:00:00]} g6 {[%emt 0:00:00]} 3. Nc3 {[%emt 0:00:00]} d5 {[%emt 0:00:00]} 4. cxd5 {[%emt 0:00:00]} Nxd5 {[%emt 0:00:06]} 5. Qb3 {[%emt 0:00:00]} Nb6 {[%emt 0:01:48]} 6. d4 {[%emt 0:00:04]} Bg7 {[%emt 0:01:59]} 7. Bf4 {[%emt 0:00:26]} Be6 {[%emt 0:03:26]} 8. Qa3 {[%emt 0:01:15]} O-O {[%emt 0:02:38]} 9. e4 {[%emt 0:03:43]} Bc4 {[%emt 0:11:24]} 10. Bxc4 {[%emt 0:03:09]} Nxc4 {[%emt 0:00:39]} 11. Qb3 {[%emt 0:00:05]} Nb6 {[%emt 0:03:28]} 12. Rd1 {[%emt 0:01:05]} Qc8 {[%emt 0:04:11]} 13. O-O {[%emt 0:03:11]} Na6 {[%emt 0:08:35]} 14. Bg5 {[%emt 0:04:55]} Re8 {[%emt 0:01:52]} 15. Ne5 {[%emt 0:02:04]} e6 {[%emt 0:02:47]} 16. Ng4 {[%emt 0:00:14]} c5 {[%emt 0:04:15]} 17. e5 {[%emt 0:01:49]} h5 {[%emt 0:03:11]} 18. Nf6+ {[%emt 0:00:17]} Bxf6 {[%emt 0:00:07]} 19. Bxf6 {[%emt 0:00:27]} cxd4 {[%emt 0:04:27]} 20. Rxd4 {[%emt 0:02:42]} Nd7 {[%emt 0:01:02]} 21. Ne4 {[%emt 0:00:52]} Nac5 {[%emt 0:05:14]} 22. Nxc5 {[%emt 0:00:07]} Nxf6 {[%emt 0:00:04]} 23. Nxb7 {[%emt 0:17:22]} Ng4 {[%emt 0:01:14]} 24. Nd6 {[%emt 0:16:22]} Qc5 {[%emt 0:00:14]} 25. Re4 {[%emt 0:10:37]} Red8 {[%emt 0:10:11]} 26. Re2 {[%emt 0:04:49]} Rab8 {[%emt 0:03:04]} 27. Qg3 {[%emt 0:00:06]} Qd4 {[%emt 0:04:08]} 28. Qh4 {[%emt 0:07:50]} Qd5 {[%emt 0:08:58]} 29. h3 {[%emt 0:01:14]} Nxe5 {[%emt 0:01:28]} 30. Ne4 {[%emt 0:00:07]} Qb5 {[%emt 0:03:57]} 31. Re3 {[%emt 0:02:02]} Nc4 {[%emt 0:05:08]} 32. Nf6+ {[%emt 0:01:14]} Kg7 {[%emt 0:02:46]} 33. Rg3 {[%emt 0:00:14]} Nd2 {[%emt 0:00:58]} 34. Re1 {[%emt 0:00:23]} Qa5 {[%emt 0:01:07]} 35. Kh2 {[%emt 0:04:08]} Rb5 {[%emt 0:01:21]} 36. b4 {[%emt 0:00:54]} Rxb4 {[%emt 0:01:01]} 37. Nxh5+ {[%emt 0:00:07]} Kh6 {[%emt 0:01:08]} 38. Nf4+ {[%emt 0:00:16]} Kg7 {[%emt 0:00:10]} 39. Nxe6+ {[%emt 0:02:45]} fxe6 {[%emt 0:00:30]} 40. Qe7+ {[%emt 0:00:00]} Kh6 {[%emt 0:00:00]} 41. Rxg6+ {[%emt 0:00:08]} Kxg6 {[%emt 0:00:59]} 42. Rxe6+ {[%emt 0:00:01]} Kh5 {[%emt 0:00:22]} 43. Qh7+ {[%emt 0:00:05]} Kg5 {[%emt 0:00:06]} 44. Qg6+ {[%emt 0:00:04]} Kh4 {[%emt 0:00:21]} 45. g3# {[%emt 0:00:04]} 1-0

[Event "EYCC Open-U18 2019"]
[Site "Bratislava"]
[Date "2019.08.05"]
[Round "4.18"]
[White "Fus, Jakub"]
[Black "Kukas, Oliver"]
[Result "1-0"]
[ECO "D80"]
[WhiteElo "2341"]
[BlackElo "2082"]
[Annotator "NA"]
[PlyCount "49"]
[EventDate "2019.08.02"]
[EventType "swiss"]
[EventCountry "SVK"]
[SourceTitle "playchess.com"]
[Source "ChessBase"]
[SourceQuality "1"]
[TimeControl "40/5400+30:1800+30"]

1. d4 {[%emt 0:00:00]} Nf6 {[%emt 0:00:00]} 2. c4 {[%emt 0:00:00]} g6 {[%emt 0:00:00]} 3. Nc3 {[%emt 0:00:24]} d5 {[%emt 0:00:00]} 4. Bg5 {[%emt 0:00:57]} Ne4 {[%emt 0:00:18]} 5. Bh4 {[%emt 0:00:11]} Nxc3 {[%emt 0:00:10]} 6. bxc3 dxc4 {[%emt 0:00:19]} 7. e3 {[%emt 0:00:37]} Be6 {[%emt 0:01:18]} 8. Qb1 {[%emt 0:00:38]} Qd5 {[%emt 0:00:27]} 9. Nf3 {[%emt 0:06:03]} Bg7 {[%emt 0:02:13]} 10. Be2 {[%emt 0:01:06]} Nd7 {[%emt 0:00:17]} 11. O-O {[%emt 0:06:24]} Nb6 {[%emt 0:00:22]} 12. a4 {[%emt 0:06:26]} Bf5 {[%emt 0:00:48]} 13. Qb4 {[%emt 0:08:30]} Qd6 {[%emt 0:05:14]} 14. Qxd6 {[%emt 0:01:48]} exd6 {[%emt 0:07:45]} 15. a5 {[%emt 0:01:13]} Nd5 {[%emt 0:03:36]} 16. Bxc4 {[%emt 0:03:04]} Nxc3 {[%emt 0:05:06]} 17. Rfc1 {[%emt 0:02:05]} Ne4 {[%emt 0:18:37]} 18. a6 {[%emt 0:01:06]} Rb8 {[%emt 0:10:51]} 19. axb7 {[%emt 0:00:56]} c6 {[%emt 0:03:52]} 20. Rxa7 {[%emt 0:01:30]} Kd7 {[%emt 0:06:01]} 21. Bd3 {[%emt 0:04:29]} Kc7 {[%emt 0:03:09]} 22. Ra6 {[%emt 0:08:48]} c5 {[%emt 0:09:58]} 23. Bxe4 {[%emt 0:00:53]} Bxe4 {[%emt 0:00:12]} 24. Bg3 {[%emt 0:00:53]} Kxb7 {[%emt 0:03:15]} 25. Rxd6 {[%emt 0:00:32]} 1-0

[Event "EYCC Open-U18 2019"]
[Site "Bratislava"]
[Date "2019.08.05"]
[Round "4.21"]
[White "Guerra Rivera, Salvador"]
[Black "Baranciuc, Alexandr"]
[Result "1-0"]
[ECO "B07"]
[WhiteElo "2355"]
[BlackElo "1901"]
[Annotator "NA"]
[PlyCount "43"]
[EventDate "2019.08.02"]
[EventType "swiss"]
[EventCountry "SVK"]
[SourceTitle "playchess.com"]
[Source "ChessBase"]
[SourceQuality "1"]
[TimeControl "40/5400+30:1800+30"]

1. e4 {[%emt 0:00:00]} d6 {[%emt 0:00:00]} 2. d4 {[%emt 0:00:04]} Nf6 {[%emt 0:00:00]} 3. Nc3 {[%emt 0:00:16]} g6 {[%emt 0:00:02]} 4. Bg5 {[%emt 0:03:12]} Bg7 {[%emt 0:01:13]} 5. e5 {[%emt 0:00:31]} Nfd7 {[%emt 0:14:19]} 6. exd6 {[%emt 0:00:31]} cxd6 {[%emt 0:00:05]} 7. Qd2 {[%emt 0:00:04]} h6 {[%emt 0:00:05]} 8. Be3 {[%emt 0:01:43]} Nc6 {[%emt 0:00:57]} 9. O-O-O {[%emt 0:01:06]} Nf6 {[%emt 0:04:37]} 10. f3 {[%emt 0:02:08]} a6 {[%emt 0:11:36]} 11. Kb1 {[%emt 0:18:55]} b5 {[%emt 0:03:36]} 12. d5 {[%emt 0:01:07]} Na5 {[%emt 0:05:14]} 13. Bd4 {[%emt 0:01:10]} O-O {[%emt 0:09:44]} 14. g4 {[%emt 0:04:22]} Bd7 {[%emt 0:03:05]} 15. Be2 {[%emt 0:13:10]} Rc8 {[%emt 0:11:36]} 16. h4 {[%emt 0:03:35]} Qc7 {[%emt 0:02:01]} 17. g5 {[%emt 0:02:39]} b4 {[%emt 0:00:27]} 18. gxf6 {[%emt 0:01:00]} bxc3 {[%emt 0:03:18]} 19. Bxc3 {[%emt 0:00:13]} Bxf6 {[%emt 0:01:49]} 20. Bxa5 {[%emt 0:00:29]} Qb7 {[%emt 0:00:16]} 21. c4 {[%emt 0:01:18]} Bf5+ {[%emt 0:00:56]} 22. Ka1 {[%emt 0:00:09]} 1-0

[Event "EYCC Open-U18 2019"]
[Site "Bratislava"]
[Date "2019.08.05"]
[Round "4.23"]
[White "Garanin, Aleksei"]
[Black "Erenberg, Ariel"]
[Result "0-1"]
[ECO "E15"]
[WhiteElo "2192"]
[BlackElo "2442"]
[Annotator "NA"]
[PlyCount "60"]
[EventDate "2019.08.02"]
[EventType "swiss"]
[EventCountry "SVK"]
[SourceTitle "playchess.com"]
[Source "ChessBase"]
[SourceQuality "1"]
[TimeControl "40/5400+30:1800+30"]

1. d4 {[%emt 0:00:00]} Nf6 {[%emt 0:00:00]} 2. c4 {[%emt 0:00:00]} e6 {[%emt 0:00:00]} 3. Nf3 {[%emt 0:00:00]} b6 {[%emt 0:00:00]} 4. g3 {[%emt 0:00:00]} Ba6 {[%emt 0:00:00]} 5. b3 {[%emt 0:00:14]} d5 {[%emt 0:00:40]} 6. Bg2 {[%emt 0:03:20]} Bb4+ {[%emt 0:06:18]} 7. Bd2 {[%emt 0:02:39]} Be7 {[%emt 0:00:40]} 8. Qc2 {[%emt 0:03:24]} O-O {[%emt 0:03:00]} 9. O-O {[%emt 0:00:17]} c6 {[%emt 0:13:17]} 10. Rd1 {[%emt 0:04:22]} Nbd7 {[%emt 0:03:49]} 11. Bf4 {[%emt 0:08:55]} Rc8 {[%emt 0:00:52]} 12. Nbd2 {[%emt 0:01:36]} Nh5 {[%emt 0:00:13]} 13. Be3 {[%emt 0:03:01]} f5 {[%emt 0:00:40]} 14. Nf1 {[%emt 0:05:07]} Qe8 {[%emt 0:10:56]} 15. a4 {[%emt 0:05:25]} Nhf6 {[%emt 0:01:21]} 16. a5 {[%emt 0:07:32]} b5 {[%emt 0:00:32]} 17. Ne5 {[%emt 0:03:27]} bxc4 {[%emt 0:11:20]} 18. bxc4 {[%emt 0:00:52]} c5 {[%emt 0:05:45]} 19. f4 {[%emt 0:12:56]} cxd4 {[%emt 0:03:07]} 20. Bxd4 {[%emt 0:01:19]} Nxe5 {[%emt 0:04:16]} 21. fxe5 {[%emt 0:00:30]} Rxc4 {[%emt 0:01:19]} 22. Qb2 {[%emt 0:00:39]} Ne4 {[%emt 0:03:49]} 23. Bxe4 {[%emt 0:04:55]} fxe4 {[%emt 0:00:18]} 24. Bxa7 {[%emt 0:00:34]} Qh5 {[%emt 0:03:24]} 25. Bd4 {[%emt 0:06:46]} Rb4 {[%emt 0:01:00]} 26. Qd2 {[%emt 0:00:29]} Qxe2 {[%emt 0:04:53]} 27. Ne3 {[%emt 0:03:14]} Qxd2 {[%emt 0:03:28]} 28. Rxd2 {[%emt 0:00:01]} Bg5 {[%emt 0:00:58]} 29. Re1 {[%emt 0:00:47]} Rf3 {[%emt 0:00:50]} 30. Bb6 {[%emt 0:03:14]} Rb3 {[%emt 0:02:15]} 0-1

[Event "EYCC Open-U18 2019"]
[Site "Bratislava"]
[Date "2019.08.05"]
[Round "4.27"]
[White "Ludvik, Tomas"]
[Black "Boev, Viktor"]
[Result "0-1"]
[ECO "D31"]
[WhiteElo "2334"]
[BlackElo "2246"]
[Annotator "NA RC"]
[PlyCount "82"]
[EventDate "2019.08.02"]
[EventType "swiss"]
[EventCountry "SVK"]
[TimeControl "40/5400+30:1800+30"]

1. d4 {[%emt 0:00:00]} d5 {[%emt 0:00:00]} 2. c4 {[%emt 0:00:00]} e6 {[%emt 0:00:00]} 3. Nc3 {[%emt 0:00:00]} c6 {[%emt 0:00:02]} 4. Nf3 {[%emt 0:00:02]} dxc4 {[%emt 0:01:19]} 5. a4 {[%emt 0:00:32]} Bb4 {[%emt 0:00:28]} 6. e3 {[%emt 0:00:37]} b5 {[%emt 0:00:11]} 7. Bd2 {[%emt 0:01:13]} a5 {[%emt 0:00:51]} 8. axb5 {[%emt 0:00:16]} Bxc3 {[%emt 0:00:05]} 9. Bxc3 {[%emt 0:00:04]} cxb5 {[%emt 0:00:06]} 10. b3 {[%emt 0:00:10]} Bb7 {[%emt 0:00:06]} 11. bxc4 {[%emt 0:00:13]} b4 {[%emt 0:00:06]} 12. Bb2 {[%emt 0:00:09]} Nf6 {[%emt 0:00:07]} 13. Bd3 {[%emt 0:01:10]} O-O {[%emt 0:00:30]} 14. O-O {[%emt 0:00:11]} Nbd7 {[%emt 0:00:21]} 15. Nd2 {[%emt 0:05:39]} Qc7 {[%emt 0:02:47]} 16. Bc2 {[%emt 0:07:03]} e5 {[%emt 0:05:02]} 17. d5 {[%emt 0:03:43]} Ba6 {[%emt 0:09:15]} 18. Ba4 {[%emt 0:08:26]} Nc5 {[%emt 0:08:25]} 19. Bc6 {[%emt 0:07:06]} Bb7 {[%emt 0:03:27]} 20. Bxb7 {[%emt 0:07:05]} Nxb7 {[%emt 0:00:11]} 21. f4 {[%emt 0:02:40]} Nd7 {[%emt 0:01:17]} 22. Qh5 {[%emt 0:08:40]} f6 {[%emt 0:11:41]} 23. Rf3 {[%emt 0:04:56]} Nbc5 {[%emt 0:09:14]} 24. Rh3 {[%emt 0:04:34]} h6 {[%emt 0:00:07]} 25. Qf5 {[%emt 0:09:28]} Rf7 {[%emt 0:02:03]} 26. Rf1 {[%emt 0:02:41]} a4 {[%emt 0:02:02]} 27. e4 {[%emt 0:03:18]} exf4 {[%emt 0:09:42]} 28. Rxf4 {[%emt 0:00:45]} Ne5 {[%emt 0:00:58]} 29. Rf1 {[%emt 0:04:42]} Ncd3 {[%emt 0:03:41]} 30. Bd4 {[%emt 0:01:29]} b3 {[%emt 0:00:25]} 31. Rb1 {[%emt 0:06:38]} b2 {[%emt 0:03:20]} 32. Rxd3 {[%emt 0:05:34]} Nxd3 {[%emt 0:00:10]} 33. e5 {[%emt 0:05:37]} fxe5 {[%emt 0:02:56]} 34. Qxd3 {[%emt 0:00:07]} exd4 {[%emt 0:00:05]} 35. Rxb2 {[%emt 0:00:11]} Qf4 {[%emt 0:00:42]} 36. Rb1 {[%emt 0:01:48]} Qf2+ {[%emt 0:01:19]} 37. Kh1 {[%emt 0:00:01]} Qe3 {[%emt 0:00:20]} 38. Qxe3 {[%emt 0:00:57]} dxe3 {[%emt 0:00:06]} 39. Nf3 {[%emt 0:00:05]} a3 {[%emt 0:00:06]} 40. Nd4 {[%emt 0:00:00]} a2 {[%emt 0:00:00]} 41. Ra1 {[%emt 0:01:28]} Rf1+ {[%emt 0:00:53]} 0-1